fUSD/lending_fUSD_20250117
["ID","MTS","AMOUNT","RATE_DAILY","PERIOD"]
[349358366,1737133846048,-500.0,0.00023199,2]
[349358367,1737133846058,-500.0,0.00023199,2]
[349358368,1737133846067,-500.0,0.00023199,2]
[349358369,1737133846078,-500.0,0.00023199,2]
[349358370,1737133846088,-500.0,0.00023199,2]
[349358371,1737133846098,-265.3,0.00023199,2]
[349358372,1737133846107,-500.0,0.00023199,2]
[349358373,1737133846117,-500.0,0.00023199,2]
[349358374,1737133846128,-500.0,0.00023199,2]
[349358375,1737133846138,-500.0,0.00023199,2]
[349358376,1737133846150,-500.0,0.00023199,2]
[349358377,1737133846160,-500.0,0.00023199,2]
[349358378,1737133846170,-500.0,0.00023199,2]
[349358379,1737133846179,-500.0,0.00023199,2]
[349358380,1737133846189,-500.0,0.00023199,2]
[349358381,1737133846199,-356.32,0.00023199,2]
[349358382,1737133846209,-500.0,0.00023199,2]
[349358383,1737133846219,-500.0,0.00023199,2]
[349358384,1737133846229,-500.0,0.00023199,2]
[349358385,1737133846239,-500.0,0.00023199,2]
[349358386,1737133846249,-500.0,0.00023199,2]
[349358387,1737133846259,-500.0,0.00023199,2]
[349358388,1737133846269,-500.0,0.00023199,2]
[349358389,1737133846279,-500.0,0.00023199,2]
[349358390,1737133846289,-500.0,0.00023199,2]
[349358391,1737133846299,-500.0,0.00023199,2]
[349358392,1737133846309,-500.0,0.00023199,2]
[349358393,1737133846319,-500.0,0.00023199,2]
[349358394,1737133846329,-500.0,0.00023199,2]
[349358395,1737133846339,-615.49,0.00023199,2]
[349358396,1737133846349,-500.0,0.00023199,2]
[349358397,1737133846359,-500.0,0.00023199,2]
[349358398,1737133846369,-500.0,0.00023199,2]
[349358399,1737133846380,-538.47,0.00023199,2]
[349358400,1737133846392,-525.7688121,0.00023199,2]
[349358401,1737133846402,-501.03295053,0.00023199,2]
[349358402,1737133846415,-500.0,0.00023199,2]
[349358403,1737133846425,-500.0,0.00023199,2]
[349358404,1737133846435,-500.0,0.00023199,2]
[349358405,1737133846444,-407.27023133,0.00023199,2]
[349358406,1737133846455,-500.0,0.00023199,2]
[349358407,1737133846466,-500.0,0.00023199,2]
[349358408,1737133846475,-500.0,0.00023199,2]
[349358409,1737133846485,-500.0,0.00023199,2]
[349358410,1737133846495,-500.0,0.00023199,2]
[349358411,1737133846505,-510.96,0.00023199,2]
[349358412,1737133846515,-500.0,0.00023199,2]
[349358413,1737133846524,-500.0,0.00023199,2]
[349358414,1737133846535,-500.0,0.00023199,2]
[349358415,1737133846545,-500.0,0.00023199,2]
[349358416,1737133846555,-500.0,0.00023199,2]
[349358417,1737133846565,-500.0,0.00023199,2]
[349358418,1737133846575,-500.0,0.00023199,2]
[349358419,1737133846584,-500.0,0.00023199,2]
[349358420,1737133846597,-500.0,0.00023199,2]
[349358421,1737133846607,-500.0,0.00023199,2]
[349358422,1737133846617,-500.0,0.00023199,2]
[349358423,1737133846627,-500.0,0.00023199,2]
[349358424,1737133846636,-500.0,0.00023199,2]
[349358425,1737133846648,-500.0,0.00023199,2]
[349358426,1737133846659,-500.0,0.00023199,2]
[349358427,1737133846669,-500.0,0.00023199,2]
[349358428,1737133846679,-500.0,0.00023199,2]
[349358429,1737133846689,-500.0,0.00023199,2]
[349358430,1737133846699,-500.0,0.00023199,2]
[349358431,1737133846708,-500.0,0.00023199,2]
[349358432,1737133846718,-500.0,0.00023199,2]
[349358433,1737133846728,-500.0,0.00023199,2]
[349358434,1737133846737,-500.0,0.00023199,2]
[349358436,1737133846747,-500.0,0.00023199,2]
[349358438,1737133846756,-500.0,0.00023199,2]
[349358440,1737133846766,-500.0,0.00023199,2]
[349358441,1737133846776,-500.0,0.00023199,2]
[349358442,1737133846786,-500.0,0.00023199,2]
[349358443,1737133846795,-500.0,0.00023199,2]
[349358444,1737133846804,-500.0,0.00023199,2]
[349358445,1737133846814,-201.74,0.00023199,2]
[349358446,1737133846824,-289.08,0.00023199,2]
[349358447,1737133846833,-500.0,0.00023199,2]
[349358448,1737133846843,-500.0,0.00023199,2]
[349358449,1737133846852,-500.0,0.00023199,2]
[349358450,1737133846862,-500.0,0.00023199,2]
[349358451,1737133846871,-500.0,0.00023199,2]
[349358452,1737133846881,-500.0,0.00023199,2]
[349358453,1737133846892,-500.0,0.00023199,2]
[349358454,1737133846902,-500.0,0.00023199,2]
[349358455,1737133846911,-337.04,0.00023199,2]
[349358456,1737133846921,-500.0,0.00023199,2]
[349358457,1737133846931,-500.0,0.00023199,2]
[349358458,1737133846940,-500.0,0.00023199,2]
[349358459,1737133846950,-504.64116049,0.00023199,2]
[349358460,1737133846960,-500.0,0.00023199,2]
[349358461,1737133846970,-500.0,0.00023199,2]
[349358462,1737133846981,-244.70734936,0.00023199,2]
[349358463,1737133846991,-500.0,0.00023199,2]
[349358464,1737133847000,-500.0,0.00023199,2]
[349358465,1737133847010,-500.0,0.00023199,2]
[349358466,1737133847019,-500.0,0.00023199,2]
[349358467,1737133847029,-551.34,0.00023199,2]
[349358468,1737133847039,-500.0,0.00023199,2]
[349358469,1737133847049,-500.0,0.00023199,2]
[349358470,1737133847058,-500.0,0.00023199,2]
[349358471,1737133847068,-500.0,0.00023199,2]
[349358472,1737133847079,-500.0,0.00023199,2]
[349358473,1737133847090,-576.18,0.00023199,2]
[349358474,1737133847100,-500.0,0.00023199,2]
[349358475,1737133847110,-500.0,0.00023199,2]
[349358476,1737133847120,-500.0,0.00023199,2]
[349358477,1737133847130,-500.0,0.00023199,2]
[349358478,1737133847142,-500.0,0.00023199,2]
[349358479,1737133847289,-500.0,0.00023199,2]
[349358480,1737133847298,-500.0,0.00023199,2]
[349358481,1737133847307,-532.91673376,0.00023199,2]
[349358482,1737133847316,-500.0,0.00023199,2]
[349358483,1737133847326,-500.0,0.00023199,2]
[349358484,1737133847335,-500.0,0.00023199,2]
[349358485,1737133847345,-500.0,0.00023199,2]
[349358486,1737133847355,-500.0,0.00023199,2]
[349358487,1737133847364,-500.0,0.00023199,2]
[349358488,1737133847374,-500.0,0.00023199,2]
[349358489,1737133847383,-500.0,0.00023199,2]
[349358490,1737133847394,-500.0,0.00023199,2]
[349358491,1737133847404,-500.0,0.00023199,2]
[349358492,1737133847415,-418.3,0.00023199,2]
[349358493,1737133847427,-500.0,0.00023199,2]
[349358494,1737133847437,-500.0,0.00023199,2]
[349358495,1737133847446,-526.34,0.00023199,2]
[349358496,1737133847455,-559.45,0.00023199,2]
[349358497,1737133847467,-500.0,0.00023199,2]
[349358498,1737133847477,-500.0,0.00023199,2]
[349358499,1737133847487,-244.24,0.00023199,2]
[349358500,1737133847498,-500.0,0.00023199,2]
[349358501,1737133847507,-500.0,0.00023199,2]
[349358502,1737133847517,-500.0,0.00023199,2]
[349358503,1737133847527,-500.0,0.00023199,2]
[349358504,1737133847537,-534.11831217,0.00023199,2]
[349358505,1737133847547,-500.0,0.00023199,2]
[349358506,1737133847556,-500.0,0.00023199,2]
[349358507,1737133847566,-500.0,0.00023199,2]
[349358508,1737133847575,-500.0,0.00023199,2]
[349358509,1737133847585,-500.0,0.00023199,2]
[349358510,1737133847594,-500.0,0.00023199,2]
[349358511,1737133847604,-535.9,0.00023199,2]
[349358512,1737133847613,-500.0,0.00023199,2]
[349358513,1737133847623,-500.0,0.00023199,2]
[349358514,1737133847633,-949.17,0.00023199,2]
[349358515,1737133847644,-500.0,0.00023199,2]
[349358516,1737133847653,-949.17,0.00023199,2]
[349358517,1737133847663,-949.17,0.00023199,2]
[349358518,1737133847672,-949.17,0.00023199,2]
[349358519,1737133847682,-949.17,0.00023199,2]
[349358520,1737133847691,-949.17,0.00023199,2]
[349358521,1737133847701,-949.17,0.00023199,2]
[349358522,1737133847710,-949.17,0.00023199,2]
[349358523,1737133847720,-949.17,0.00023199,2]
[349358524,1737133847730,-949.17,0.00023199,2]
[349358525,1737133847739,-500.0,0.00023199,2]
[349358526,1737133847749,-949.17,0.00023199,2]
[349358527,1737133847759,-500.0,0.00023199,2]
[349358528,1737133847768,-949.17,0.00023199,2]
[349358529,1737133847777,-500.0,0.00023199,2]
[349358530,1737133847787,-949.17,0.00023199,2]
[349358531,1737133847796,-949.17,0.00023199,2]
[349358532,1737133847805,-500.0,0.00023199,2]
[349358533,1737133847816,-949.17,0.00023199,2]
[349358534,1737133847825,-500.0,0.00023199,2]
[349358535,1737133847835,-949.17,0.00023199,2]
[349358536,1737133847846,-500.0,0.00023199,2]
[349358537,1737133847855,-949.17,0.00023199,2]
[349358538,1737133847866,-500.0,0.00023199,2]
[349358539,1737133847875,-949.17,0.00023199,2]
[349358540,1737133847884,-183.09,0.00023199,2]
[349358541,1737133847895,-949.17,0.00023199,2]
[349358542,1737133847905,-949.2222571,0.00023199,2]
[349358543,1737133847914,-500.0,0.00023199,2]
[349358544,1737133847923,-474.63,0.00023199,2]
[349358545,1737133847932,-500.0,0.00023199,2]
[349358546,1737133847942,-500.0,0.00023199,2]
[349358547,1737133847952,-500.0,0.00023199,2]
[349358548,1737133847962,-500.0,0.00023199,2]
[349358549,1737133847971,-500.0,0.00023199,2]
[349358550,1737133847981,-500.0,0.00023199,2]
[349358551,1737133847990,-500.0,0.00023199,2]
[349358552,1737133848000,-500.0,0.00023199,2]
[349358553,1737133848009,-500.0,0.00023199,2]
[349358554,1737133848019,-500.0,0.00023199,2]
[349358555,1737133848028,-500.0,0.00023199,2]
[349358556,1737133848038,-295.58,0.00023199,2]
[349358557,1737133848048,-500.0,0.00023199,2]
[349358558,1737133848058,-500.0,0.00023199,2]
[349358559,1737133848068,-500.0,0.00023199,2]
[349358560,1737133848079,-500.0,0.00023199,2]
[349358561,1737133848089,-500.0,0.00023199,2]
[349358562,1737133848098,-500.0,0.00023199,2]
[349358563,1737133848107,-500.0,0.00023199,2]
[349358564,1737133848117,-500.0,0.00023199,2]
[349358565,1737133848127,-500.0,0.00023199,2]
[349358566,1737133848137,-500.0,0.00023199,2]
[349358567,1737133848149,-500.0,0.00023199,2]
[349358568,1737133848158,-500.0,0.00023199,2]
[349358569,1737133848168,-602.17,0.00023199,2]
[349358570,1737133848177,-348.21483278,0.00023199,2]
[349358571,1737133848187,-500.0,0.00023199,2]
[349358572,1737133848197,-424.46,0.00023199,2]
[349358573,1737133848207,-500.0,0.00023199,2]
[349358574,1737133848217,-641.39,0.00023199,2]
[349358575,1737133848227,-500.0,0.00023199,2]
[349358576,1737133848237,-500.0,0.00023199,2]
[349358577,1737133848247,-500.0,0.00023199,2]
[349358578,1737133848258,-500.0,0.00023199,2]
[349358579,1737133848267,-500.0,0.00023199,2]
[349358580,1737133848276,-500.0,0.00023199,2]
[349358581,1737133848285,-500.0,0.00023199,2]
[349358582,1737133848295,-500.0,0.00023199,2]
[349358583,1737133848304,-244.08,0.00023199,2]
[349358584,1737133848314,-500.0,0.00023199,2]
[349358585,1737133848324,-506.75,0.00023199,2]
[349358586,1737133848333,-500.0,0.00023199,2]
[349358587,1737133848343,-500.0,0.00023199,2]
[349358588,1737133848353,-500.0,0.00023199,2]
[349358589,1737133848363,-500.0,0.00023199,2]
[349358590,1737133848373,-500.0,0.00023199,2]
[349358591,1737133848384,-500.0,0.00023199,2]
[349358592,1737133848394,-500.0,0.00023199,2]
[349358593,1737133848408,-535.77,0.00023199,2]
[349358594,1737133848423,-500.0,0.00023199,2]
[349358595,1737133848434,-448.95,0.00023199,2]
[349358596,1737133848444,-500.0,0.00023199,2]
[349358597,1737133848455,-500.0,0.00023199,2]
[349358598,1737133848465,-500.0,0.00023199,2]
[349358599,1737133848474,-500.0,0.00023199,2]
[349358600,1737133848484,-500.0,0.00023199,2]
[349358601,1737133848494,-500.0,0.00023199,2]
[349358602,1737133848504,-500.0,0.00023199,2]
[349358603,1737133848515,-500.0,0.00023199,2]
[349358604,1737133848524,-500.0,0.00023199,2]
[349358605,1737133848534,-345.44,0.00023199,2]
[349358606,1737133848544,-500.0,0.00023199,2]
[349358607,1737133848554,-500.0,0.00023199,2]
[349358608,1737133848565,-501.48471784,0.00023199,2]
[349358609,1737133848575,-500.0,0.00023199,2]
[349358610,1737133848585,-500.0,0.00023199,2]
[349358611,1737133848594,-500.0,0.00023199,2]
[349358612,1737133848605,-500.0,0.00023199,2]
[349358613,1737133848615,-313.66,0.00023199,2]
[349358614,1737133848625,-500.0,0.00023199,2]
[349358615,1737133848635,-500.0,0.00023199,2]
[349358616,1737133848646,-239.44,0.00023199,2]
[349358617,1737133848657,-500.0,0.00023199,2]
[349358618,1737133848667,-607.09,0.00023199,2]
[349358619,1737133848677,-500.0,0.00023199,2]
[349358620,1737133848687,-500.0,0.00023199,2]
[349358621,1737133848697,-1615964.18277654,0.000232,2]
[349358622,1737133848706,-12361.4145047,0.000232,2]
[349358623,1737133848716,-1524771.85235189,0.000232,2]
[349358624,1737133848881,-428.78358568,0.00023099,2]
[349358625,1737133848895,-942240.18276127,0.000232,2]
[349358626,1737133848911,-3395.89404,0.000232,2]
[349358627,1737133848928,-11218.56387109,0.000232,2]
[349358628,1737133849059,-325.99726749,0.000232,2]
[349358629,1737133849077,-38513.82080427,0.000232,2]
[349358630,1737133849226,-487.9651104,0.00022998,2]
[349358631,1737133849249,-12.0348896,0.00022998,2]
[349358632,1737133849263,-500.0,0.00022998,2]
[349358633,1737133849275,-97.4651104,0.00023099,2]
[349358634,1737133849462,-500.0,0.00022998,2]
[349358635,1737133849475,-302.67283177,0.00023011,2]
[349358636,1737133849485,-402.5348896,0.00023099,2]
[349358637,1737133849496,-500.0,0.00023099,2]
[349358638,1737133849508,-500.0,0.00023099,2]
[349358639,1737133849522,-500.0,0.00023099,2]
[349358640,1737133849535,-500.0,0.00023177,2]
[349358641,1737133849547,-500.0,0.00023188,2]
[349358642,1737133849558,-221.63,0.00023188,2]
[349358643,1737133849569,-500.0,0.00023197,2]
[349358644,1737133849580,-500.0,0.00023198,2]
[349358645,1737133849592,-500.0,0.00023198,2]
[349358646,1737133849603,-495.96,0.00023199,2]
[349358647,1737133849615,-500.0,0.00023199,2]
[349358648,1737133849626,-500.0,0.00023199,2]
[349358649,1737133849638,-500.0,0.00023199,2]
[349358650,1737133849650,-242.06,0.00023199,2]
[349358651,1737133849662,-571.62,0.00023199,2]
[349358652,1737133849674,-2260.20174801,0.000232,2]
[349358653,1737133849711,-500.0,0.00022998,2]
[349358654,1737133849723,-217.79447898,0.000232,2]
[349358655,1737133849737,-1992.58999992,0.000232,2]
[349358656,1737133849750,-1002.8,0.000232,2]
[349358657,1737133849764,-1572.45,0.000232,2]
[349358658,1737133849779,-987.93204666,0.000232,2]
[349358659,1737133849802,-73436.5,0.000232,2]
[349358660,1737133849900,-8933.08450335,0.000232,2]
[349358661,1737133849914,-676928.21582926,0.000232,2]
[349358662,1737133850072,-500.0,0.00022998,2]
[349358663,1737133850085,-500.0,0.00022998,2]
[349358664,1737133850096,-478.85,0.00023099,2]
[349358665,1737133850108,-500.0,0.00023099,2]
[349358666,1737133850120,-500.0,0.00023099,2]
[349358667,1737133850131,-602.95,0.00023099,2]
[349358668,1737133850143,-500.0,0.00023177,2]
[349358669,1737133850155,-500.0,0.00023188,2]
[349358670,1737133850167,-500.0,0.00023198,2]
[349358671,1737133850179,-500.0,0.00023198,2]
[349358672,1737133850190,-500.0,0.00023199,2]
[349358673,1737133850200,-500.0,0.00023199,2]
[349358674,1737133850209,-500.0,0.00023199,2]
[349358675,1737133850219,-500.0,0.00023199,2]
[349358676,1737133850228,-493.5,0.00023199,2]
[349358677,1737133850238,-500.0,0.00023199,2]
[349358678,1737133850248,-17186.86733981,0.000232,2]
[349358679,1737133850261,-149745.13100006,0.000232,2]
[349358680,1737133850272,-4878.76847329,0.000232,2]
[349358681,1737133850284,-19516.39998,0.000232,2]
[349358682,1737133850296,-76304.9499735,0.000232,2]
[349358683,1737133850307,-39344.3719,0.000232,2]
[349358684,1737133850320,-19903.9765,0.000232,2]
[349358685,1737133850331,-1573.7999998,0.000232,2]
[349358686,1737133850342,-1542.69406212,0.000232,2]
[349358687,1737133850358,-31589.87107201,0.000232,2]
[349358688,1737133850373,-500.0,0.00023199,2]
[349358689,1737133850383,-31021.96941152,0.000232,2]
[349358690,1737133850396,-375.0799997,0.000232,2]
[349358691,1737133850408,-10485.0,0.000232,2]
[349358692,1737133850427,-650.0,0.000232,2]
[349358693,1737133850439,-1376.02499825,0.000232,2]
[349358694,1737133922601,5811.0,0.000245,30]
[349358695,1737133993437,5527.0,0.000245,30]
[349358696,1737134053717,190.74,0.00012329,2]
[349358698,1737134540032,183.33,0.00010137,2]
[349358699,1737134540265,183.33,0.00016813,2]
[349358701,1737134599346,500.0,0.00025827,120]
[349358702,1737134668630,174.82,0.00017299,2]
[349358703,1737134708042,498723.89,0.00012,2]
[349358704,1737134708069,500000.0,0.00012,2]
[349358705,1737134708105,181614.57643034,0.00012,2]
[349358706,1737134719812,268.69482046,9e-05,2]
[349358707,1737134825142,-995.63,0.00019571,2]
[349358708,1737134825163,-173.86,0.00021441,2]
[349358709,1737134825185,-374.08,0.00021451,2]
[349358710,1737134825208,-250.0,0.00021487,2]
[349358711,1737134825240,-167.9,0.00021487,2]
[349358712,1737134825266,-433.8,0.00021491,2]
[349358713,1737134825290,-1000.0,0.0002159,2]
[349358714,1737134825311,-199.0,0.000216,2]
[349358715,1737134825336,-2658.72636369,0.00021601,2]
[349358716,1737134849274,-1517.64,0.000153,2]
[349358717,1737134849296,-93.90184426,0.00021601,2]
[349358718,1737134878729,2483.94214689,0.0001,2]
[349358719,1737134881913,776378.39572914,0.0001,2]
[349358720,1737134916221,65286.10718734,0.00011,2]
[349358722,1737134926299,259.54055671,8e-05,2]
[349358747,1737135032310,-187.43,0.00012329,2]
[349358748,1737135032320,-436.06309,0.00018481,2]
[349358749,1737135032332,-1187.8,0.00018481,2]
[349358750,1737135032345,-3690.07270408,0.00018481,2]
[349358751,1737135032355,-5000.0,0.00018481,2]
[349358752,1737135032364,-1464.94741267,0.00018481,2]
[349358753,1737135032376,-3535.05258733,0.00018481,2]
[349358754,1737135032386,-5000.0,0.00018481,2]
[349358755,1737135032396,-5000.0,0.00018481,2]
[349358756,1737135032406,-23517.7565654,0.000199,7]
[349358757,1737135032418,-5513.42827001,0.000199,7]
[349358758,1737135032428,-21433.0653569,0.0002,4]
[349358759,1737135032440,-7893.45161813,0.0002,4]
[349358760,1737135032452,-15147.0,0.0002,4]
[349358761,1737135032465,-275.83066418,0.0002,4]
[349358762,1737135032476,-516.38073784,0.0002,4]
[349358763,1737135032488,-273.14428064,0.0002,4]
[349358764,1737135032499,-519.38888243,0.0002,4]
[349358765,1737135032557,-56891.5398474,0.0002,4]
[349358766,1737135032567,-2922.0,0.000211,2]
[349358767,1737135032576,-26805.3787,0.00021501,2]
[349358768,1737135032586,-151.33641592,0.0002151,2]
[349358769,1737135032595,-4127.53088149,0.00021601,2]
[349358770,1737135032621,-1101.0,0.00021601,2]
[349358771,1737135032632,-4284.75801751,0.00021601,2]
[349358772,1737135032644,-11634.08289305,0.00021601,2]
[349358773,1737135032654,-250.0,0.0002161,2]
[349358774,1737135032663,-250.0,0.00021626,2]
[349358775,1737135032673,-621.9,0.00021648,2]
[349358776,1737135032682,-581.38,0.0002165,2]
[349358777,1737135032693,-200.0,0.00021683,2]
[349358778,1737135032706,-151.33641588,0.00021737,2]
[349358779,1737135032715,-995.63,0.00021834,2]
[349358780,1737135032725,-533.78054338,0.000219,3]
[349358781,1737135032736,-151.33641588,0.00021964,2]
[349358782,1737135032746,-533.78054332,0.00021969,3]
[349358784,1737135032756,-493.0,0.00022,2]
[349358786,1737135032768,-178.0,0.00022,2]
[349358788,1737135032779,-533.78054332,0.00022038,3]
[349358790,1737135032789,-180.84,0.00022106,2]
[349358792,1737135032798,-533.78054332,0.00022107,3]
[349358794,1737135032808,-533.78054332,0.00022176,3]
[349358795,1737135032818,-247.78,0.00022177,2]
[349358796,1737135032830,-247.78,0.00022183,2]
[349358797,1737135032839,-247.78,0.00022189,2]
[349358798,1737135032849,-151.33641588,0.00022191,2]
[349358799,1737135032859,-493.0,0.00022192,2]
[349358801,1737135032869,-247.78,0.00022195,2]
[349358802,1737135032879,-247.78,0.000222,2]
[349358803,1737135032889,-247.78,0.00022206,2]
[349358804,1737135032899,-1000.0,0.00022211,2]
[349358805,1737135032908,-247.78,0.00022212,2]
[349358806,1737135032919,-247.78,0.00022218,2]
[349358807,1737135032929,-500.0,0.00022219,2]
[349358808,1737135032939,-247.78,0.00022224,2]
[349358809,1737135032949,-247.78,0.0002223,2]
[349358810,1737135032959,-247.78,0.00022235,2]
[349358811,1737135032970,-247.78,0.00022241,2]
[349358812,1737135032979,-533.78054332,0.00022245,3]
[349358813,1737135032989,-247.78,0.00022247,2]
[349358814,1737135032999,-247.78,0.00022253,2]
[349358815,1737135033009,-247.78,0.00022259,2]
[349358816,1737135033018,-247.78,0.00022265,2]
[349358817,1737135033028,-247.78,0.0002227,2]
[349358818,1737135033039,-247.78,0.00022276,2]
[349358819,1737135033048,-247.78,0.00022282,2]
[349358820,1737135033058,-247.78,0.00022288,2]
[349358821,1737135033069,-533.78054332,0.00022314,3]
[349358822,1737135033079,-533.78054332,0.00022383,3]
[349358823,1737135033089,-151.33641588,0.00022419,2]
[349358824,1737135033099,-533.78054332,0.00022452,3]
[349358825,1737135033109,-493.0,0.00022466,2]
[349358826,1737135033119,-787.147,0.00022466,2]
[349358827,1737135033129,-533.78054332,0.00022521,3]
[349358828,1737135033139,-3782.62,0.00022562,2]
[349358829,1737135033149,-9994.55,0.00022562,2]
[349358830,1737135033159,-150.99,0.00022562,2]
[349358831,1737135033170,-516.72,0.00022562,2]
[349358832,1737135033180,-533.78054332,0.0002259,3]
[349358833,1737135033191,-151.33641588,0.00022646,2]
[349358834,1737135033200,-533.78054332,0.00022659,3]
[349358835,1737135033210,-533.78054332,0.00022728,3]
[349358836,1737135033219,-493.0,0.0002274,2]
[349358837,1737135033229,-533.78054332,0.00022797,3]
[349358838,1737135033238,-2586.0,0.00022865,2]
[349358839,1737135033247,-533.78054332,0.00022866,3]
[349358840,1737135033257,-151.33641588,0.00022873,2]
[349358841,1737135033267,-1000.0,0.00022898,2]
[349358842,1737135033277,-533.78054332,0.00022934,3]
[349358843,1737135033287,-977.0,0.00022967,2]
[349358844,1737135033296,-377.97008577,0.00022993,2]
[349358845,1737135033306,-5000.0,0.00022994,2]
[349358846,1737135033316,-500.0,0.00022998,2]
[349358847,1737135033325,-500.0,0.00022998,2]
[349358848,1737135033335,-500.0,0.00022998,2]
[349358849,1737135033345,-500.0,0.00022998,2]
[349358850,1737135033354,-500.0,0.00022998,2]
[349358851,1737135033364,-500.0,0.00022998,2]
[349358852,1737135033374,-500.0,0.00022998,2]
[349358853,1737135033384,-500.0,0.00022998,2]
[349358854,1737135033394,-500.0,0.00022998,2]
[349358855,1737135033404,-500.0,0.00022998,2]
[349358856,1737135033413,-500.0,0.00022998,2]
[349358857,1737135033424,-500.0,0.00022998,2]
[349358858,1737135033435,-500.0,0.00022998,2]
[349358859,1737135033445,-500.0,0.00022998,2]
[349358860,1737135033455,-626.32,0.00022998,2]
[349358861,1737135033465,-500.0,0.00022998,2]
[349358862,1737135033475,-500.0,0.00022998,2]
[349358863,1737135033485,-500.0,0.00022998,2]
[349358864,1737135033494,-500.0,0.00022998,2]
[349358865,1737135033503,-500.0,0.00022998,2]
[349358866,1737135033512,-500.0,0.00022998,2]
[349358867,1737135033522,-500.0,0.00022998,2]
[349358868,1737135033533,-500.0,0.00022998,2]
[349358869,1737135033543,-500.0,0.00022998,2]
[349358870,1737135033553,-500.0,0.00022998,2]
[349358871,1737135033563,-556.04,0.00022998,2]
[349358872,1737135033573,-500.0,0.00022998,2]
[349358873,1737135033582,-500.0,0.00022998,2]
[349358874,1737135033592,-500.0,0.00022998,2]
[349358875,1737135033602,-500.0,0.00022998,2]
[349358876,1737135033612,-500.0,0.00022998,2]
[349358877,1737135033622,-500.0,0.00022998,2]
[349358878,1737135033632,-500.0,0.00022998,2]
[349358879,1737135033644,-550.17754865,0.00022998,2]
[349358880,1737135033654,-409.92520004,0.00022998,2]
[349358881,1737135033664,-28218.65462806,0.00022999,2]
[349358882,1737135033678,-2754.10569044,0.00022999,2]
[349358997,1737135038235,-2790.02664942,0.00022288,2]
[349358999,1737135038245,-500.0,0.00022998,2]
[349359001,1737135038255,-500.0,0.00022998,2]
[349359003,1737135038265,-4401.6998815,0.00022999,2]
[349359005,1737135038275,-240.80982592,0.00022999,2]
[349359007,1737135038285,-205.57509413,0.00022999,2]
[349359009,1737135038295,-351.85836027,0.00023,2]
[349359011,1737135038304,-44537.47276829,0.00023,2]
[349359013,1737135038313,-533.78054332,0.00023003,3]
[349359015,1737135038322,-205.57509413,0.0002301,2]
[349359017,1737135038331,-500.0,0.00023013,2]
[349359018,1737135038340,-500.0,0.00023013,2]
[349359020,1737135038350,-500.0,0.00023013,2]
[349359022,1737135038359,-500.0,0.00023013,2]
[349359024,1737135038369,-500.0,0.00023013,2]
[349359026,1737135038379,-500.0,0.00023013,2]
[349359028,1737135038390,-500.0,0.00023013,2]
[349359030,1737135038399,-500.0,0.00023013,2]
[349359033,1737135038409,-505.34933364,0.00023013,2]
[349359034,1737135038419,-500.0,0.00023013,2]